Cogmind - Beta 16 --- EXPLORER MODE // 2026.01.27 @ 12:23:36 Player: K.K.Y. Result: Destroyed by FA-NAX(R) with Subdweller Laser Performance ------------- Evolutions (0) 0 Regions Visited (3) 600 Robots Destroyed (49) 245 Value Destroyed (1089) 1089 Prototype IDs (12) 240 Alien Tech Used (0) 0 Bonus (150) 150 TOTAL SCORE: 2324 Bonus ------- Follower Combat Kills 180 Friendly Fire -30 Cogmind --------- Core Integrity 0/250 Matter 295/300 Energy 125/160 System Corruption 0% Temperature Cool (6) Movement Treading (240) Ox1 Location -10/Subcaves Parts ------- > --- POWER (1) -------- Light Nuclear Core > --- PROPULSION (2) --- Light Treads > --- UTILITY (3) ------ Improved Heat Sink Large Storage Unit Structural Scanner > --- WEAPON (2) ------- Heavy Riot Gun Battle Cannon > --- INVENTORY (15) --- Makeshift Power Source Improved Heat Sink Improved Heat Sink Medium Storage Unit High-capacity Storage Unit Huge Storage Unit Light Humpback Experimental Sensor Array Improved Terrain Scanner Improved Light Armor Plating Makeshift Light Armor Plating Shock Absorption System Battle Cannon Ripper Peak State ------------ > --- POWER ------------ Light Nuclear Core > --- PROPULSION ------- Light Treads > --- UTILITY ---------- Improved Heat Sink Large Storage Unit Structural Scanner > --- WEAPON ----------- Heavy Riot Gun Battle Cannon > --- INVENTORY -------- Makeshift Power Source Improved Heat Sink Improved Heat Sink Medium Storage Unit High-capacity Storage Unit Huge Storage Unit Light Humpback Experimental Sensor Array Improved Terrain Scanner Improved Light Armor Plating Makeshift Light Armor Plating Shock Absorption System Battle Cannon Ripper [Rating: 19] Favorites ----------- Power Light Nuclear Core Engine Ion Engine Power Core Light Nuclear Core Propulsion Light Treads Treads Light Treads Utility Large Storage Unit Device Improved Heat Sink Storage Large Storage Unit Processor Launcher Guidance Computer Weapon Assault Rifle Energy Gun Small Laser Ballistic Gun Assault Rifle Ballistic Cannon Battle Cannon Special Weapon Mining Laser Build | -11 -10 -10 -10 ------- Run | Yrd Mat Min Sub Slots Evolved 1 | . 1 . . Power . | . . . . Propulsion . | . . . . Utility 1 | . 1 . . Weapon . | . . . . Parts Attached 20 | 6 2 6 6 Power 2 | 1 . . 1 Engine 1 | 1 . . . Core 1 | . . . 1 Reactor . | . . . . Propulsion 4 | 2 . 2 . Treads 4 | 2 . 2 . Leg . | . . . . Wheel . | . . . . Hover . | . . . . Flight . | . . . . Utility 7 | 1 2 2 2 Device 4 | . 1 1 2 Storage 2 | 1 1 . . Processor 1 | . . 1 . Hackware . | . . . . Protection . | . . . . Artifact . | . . . . Weapon 7 | 2 . 2 3 Energy Gun 3 | . . 2 1 Energy Cannon . | . . . . Ballistic Gun 2 | 2 . . . Ballistic Cannon 1 | . . . 1 Launcher . | . . . . Special Weapon 1 | . . . 1 Impact Weapon . | . . . . Slashing Weapon . | . . . . Piercing Weapon . | . . . . Special Melee Weapon . | . . . . Unidentified Prototypes . | . . . . Parts Lost 7 | . . 3 4 Power 1 | . . . 1 Propulsion 1 | . . . 1 Utility 1 | . . 1 . Weapon 4 | . . 2 2 Highest Loss Streak 2 | . . 2 2 To Critical Strikes . | . . . . Average Backups 12 | . 8 13 14 Power . | . . 1 . Propulsion . | . 1 . . Utility 10 | . 5 10 11 Weapon 1 | . 1 1 1 Tool/Special . | . . . . Unused Backups 16 | . . . 16 Power 1 | . . . 1 Propulsion . | . . . . Utility 11 | . . . 11 Weapon 4 | . . . 4 Tool/Special . | . . . . Average Slot Usage (%) 91 | . 86 81 95 Engine 5 | . 12 12 1 Core 6 | . . . 10 Treads 23 | . 25 25 22 Device 19 | . 11 9 24 Storage 12 | . 12 12 12 Energy Gun 6 | . . 9 7 Ballistic Gun 6 | . 25 13 . Ballistic Cannon 5 | . . . 8 Special Weapon 4 | . . . 7 Peak Build Rating 19 | 6 9 15 19 Average Rating 14 | 4 8 11 16 On Entrance 7 | . 6 9 14 Avg Prop Armor Cover (%) . | . . . . Naked Turns . | . . . . Heaviest Build 34 | 19 30 30 34 Greatest Support 40 | 40 40 40 40 Greatest Overweight (x) 1 | . . . 1 Average Overweight (x) . | . . . . Largest Inventory Capacity 15 | 10 15 15 15 Average Capacity 14 | 9 14 15 15 Most Carried 15 | 5 12 15 15 Average Carried 13 | 1 8 13 14 Final Capacity 15 | 10 15 15 15 Final Carried 15 | 2 12 14 15 Class Distribution -------------------- 52% | Hacker-Mutant 47% | Scavenger-Mutant Dominant Class ---------------- Hacker-Mutant | -10/Materials Hacker-Mutant | -10/Mines Scavenger-Mutant | -10/Subcaves Resources | -11 -10 -10 -10 ----------- Run | Yrd Mat Min Sub Matter Collected 1087 | 296 302 199 290 Remotely . | . . . . Salvage Created 1949 | 151 926 477 395 Parts 110 | 12 57 20 21 Haulers Intercepted 2 | . 2 . . Recyclers Shooed 1 | . 1 . . Parts Field Recycled . | . . . . Retrieved Matter . | . . . . Parts Self-Destructed . | . . . . Prevented . | . . . . Parts Restored . | . . . . Kills | -11 -10 -10 -10 ------- Run | Yrd Mat Min Sub Combat Hostiles Destroyed 34 | . 9 14 11 Guns 26 | . 9 14 3 Cannons 6 | . . . 6 AOE 2 | . . . 2 Classes Destroyed 16 | 2 5 3 6 Worker 1 | . . 1 . Builder 7 | . 6 1 . Tunneler 3 | 3 . . . Hauler 2 | . 2 . . Recycler 6 | 1 3 2 . Mechanic 1 | . 1 . . Turret 2 | . . . 2 Watcher 3 | . 3 . . Swarmer 4 | . . . 4 Grunt 13 | . 9 2 2 Sentry 1 | . . . 1 Demolisher 2 | . . 2 . Artisan 2 | . . . 2 Cobbler 1 | . . . 1 Subdweller 4 | . . . 4 Assembled 10 | . . 10 . Best Kill Streak 6 | 3 6 3 4 Combat Bots Only 4 | . 4 2 4 Max Kills in Single Turn 2 | 1 2 1 1 Gunslinging 1 | . 1 . . Exploded 1 | . . . 1 Melee . | . . . . Uniques/NPCs Destroyed . | . . . . Combat | -11 -10 -10 -10 -------- Run | Yrd Mat Min Sub Hostile Shots Fired 177 | . 32 41 104 Missed 52 | . 7 9 36 Hits 125 | . 25 32 68 Melee 10 | . . 10 . Projectile 115 | . 25 22 68 AOE 9 | . . 8 1 Critical Strikes 5 | . . 3 2 Damage Taken 1267 | . 255 519 493 Core 250 | . 52 67 131 Absorbed by Shields . | . . . . Ignored by Resistances 766 | . 156 303 307 Core Remaining (%) 100 | 100 . . . Volleys Fired 194 | 6 47 53 88 Largest 2 | 2 2 2 2 Hottest 140 | 40 40 105 140 Shots Fired 326 | 12 94 80 140 Gun 267 | 12 94 80 81 Cannon 41 | . . . 41 Launcher . | . . . . Special 18 | . . . 18 Kinetic 197 | 12 94 50 41 Thermal 108 | . . 30 78 Explosive . | . . . . Electromagnetic 21 | . . . 21 Robot Hit Streak 39 | 9 29 38 39 Robot Miss Streak 3 | . 1 2 3 Penetration Max . | . . . . Secondary Targets 3 | . 2 . 1 Max Gunslinging Chain 1 | . 1 . 1 Shots Hit Robots 246 | 9 80 69 88 Core Hits 112 | 5 40 34 33 Critical Kills 1 | . 1 . . Critical Parts Destroyed 1 | . . 1 . Critical Strikes 5 | . 1 1 3 Destroy 2 | . 1 1 . Blast 3 | . . . 3 Melee Attacks . | . . . . Impact . | . . . . Slashing . | . . . . Piercing . | . . . . Sneak Attacks . | . . . . Combat Hostiles . | . . . . Follow-up Attacks . | . . . . Damage Inflicted 3588 | 108 1022 944 1514 Guns 2799 | 108 1022 922 747 Cannons 606 | . . . 606 Explosions 89 | . . . 89 Melee . | . . . . Ramming 22 | . . 22 . Kinetic 2275 | 108 1022 539 606 Thermal 1052 | . . 383 669 Explosive . | . . . . Electromagnetic 239 | . . . 239 Impact . | . . . . Slashing . | . . . . Piercing . | . . . . Highest Corruption . | . . . . Average Corruption . | . . . . Corruption Purged . | . . . . Corruption Blocked . | . . . . Overload Shots . | . . . . Overflow Damage . | . . . . Projectiles . | . . . . Explosions . | . . . . Melee . | . . . . Knockbacks 3 | . . . 3 Impact . | . . . . Kinetic 3 | . . . 3 Secondary . | . . . . Self-Inflicted Damage . | . . . . Shots . | . . . . Rammed 2 | . . 2 . Targets Rammed 2 | . . 2 . Kicked . | . . . . Crushed . | . . . . Highest Temperature 240 | . 4 240 . Average Temperature 61 | . 2 74 . Received Heat Transfer 589 | . 201 142 246 Siege Activations . | . . . . Martial Activations . | . . . . Shielding Activations . | . . . . Robots Disrupted . | . . . . Combat Hostiles . | . . . . Robots Corrupted . | . . . . Combat Hostiles . | . . . . Parts Fried . | . . . . Impact Corruptions . | . . . . Robots Melted . | . . . . Combat Hostiles . | . . . . Parts Melted . | . . . . Heat Transferred 2395 | . . 950 1445 Parts Sabotaged . | . . . . Parts Stolen . | . . . . Parts Stripped . | . . . . Power Chain Reactions 2 | . . . 2 Alert | -11 -10 -10 -10 ------- Run | Yrd Mat Min Sub Maximum Alert Level . | . . . . Low Security (%) 100 | 100 100 100 . Level 1 . | . . . . Level 2 . | . . . . Level 3 . | . . . . Level 4 . | . . . . Level 5 . | . . . . High Security . | . . . . Max Security . | . . . . Peak Influence 92 | 10 92 55 . Initial . | . . . . Average 5 | 1 8 2 . Influence Increases 1565 | 20 305 150 1090 Destroy 0b10 Robot/C 440 | . 180 80 180 Destroy 0b10 Robot/NC 115 | 20 75 20 . Destroy Leader 80 | . 50 20 10 Partial Spotted 15 | . . 15 . Lose Combat Pursuer 915 | . . 15 900 Influence Decreases 1050 | 20 305 150 575 Time Decay 1050 | 20 305 150 575 Squads Dispatched . | . . . . Investigation . | . . . . Extermination . | . . . . Reinforcement . | . . . . Assault . | . . . . Garrison . | . . . . Intercept . | . . . . Searches Triggered . | . . . . Construction Impeded . | . . . . Haulers Reinforced . | . . . . Active Scanning Responses . | . . . . Cargo Convoy Interrupts . | . . . . Stealth | -11 -10 -10 -10 --------- Run | Yrd Mat Min Sub Distress Signals 2 | . 2 . . Communications Jammed . | . . . . Distress Signals . | . . . . Times Spotted 88 | . 16 19 53 Peak Tracking Total 4 | . 3 2 4 Tactical Retreats 8 | . . 4 4 Traps | -11 -10 -10 -10 ------- Run | Yrd Mat Min Sub Traps Triggered 1 | . 1 . . Indirectly . | . . . . Trap Hack Attempts . | . . . . Triggered . | . . . . Disarmed . | . . . . Reprogrammed . | . . . . Reused . | . . . . Traps Extracted . | . . . . Installed . | . . . . Triggered . | . . . . Machines | -11 -10 -10 -10 ---------- Run | Yrd Mat Min Sub Machines Disabled 4 | . . . 4 Max in Single Turn 2 | . . . 2 Machines Repaired . | . . . . Machines Dismantled . | . . . . Machines Sabotaged . | . . . . Overloaded Fab Kills . | . . . . Hacking | -11 -10 -10 -10 --------- Run | Yrd Mat Min Sub Machines Accessed 14 | . 10 . 4 Terminals 8 | . 8 . . Fabricators . | . . . . Repair Stations . | . . . . Recycling Units 2 | . 2 . . Scanalyzers . | . . . . Garrison Access . | . . . . Total Hacks 23 | . 14 . 9 Successful 20 | . 11 . 9 Failed 3 | . 3 . . Catastrophic . | . . . . Database Lockouts . | . . . . Manual 12 | . 12 . . Terminals 12 | . 12 . . Fabricators . | . . . . Repair Stations . | . . . . Recycling Units 2 | . 2 . . Scanalyzers . | . . . . Garrison Access . | . . . . Terminal Hacks 9 | . . . 9 Record 6 | . . . 6 Open Door 1 | . . . 1 Proto ID Catalog 1 | . . . 1 Release Object 1 | . . . 1 Fabricator Hacks . | . . . . Repair Station Hacks . | . . . . Recycling Unit Hacks 2 | . 2 . . Retrieve Components 2 | . 2 . . Scanalyzer . | . . . . Garrison Access Hacks . | . . . . Unauthorized Hacks 8 | . 8 . . Terminals 8 | . 8 . . Botnet 8 | . 8 . . Fabricators . | . . . . Repair Stations . | . . . . Recycling Units . | . . . . Scanalyzers . | . . . . Garrison Access . | . . . . Data Cores Recovered . | . . . . Used . | . . . . Hacking Detections 2 | . 2 . . Full Trace Events . | . . . . Feedback Events . | . . . . Feedback Blocked . | . . . . Robot Schematics Acquired . | . . . . Robots Built . | . . . . Authchips . | . . . . Time . | . . . . Total Robot Build Rating . | . . . . Part Schematics Acquired . | . . . . Parts Built . | . . . . Authchips . | . . . . Time . | . . . . Total Part Build Rating . | . . . . Part Studies Acquired . | . . . . Parts Repaired . | . . . . Time . | . . . . Parts Recycled . | . . . . Recycled Matter . | . . . . Retrieved Matter . | . . . . Retrieved Components 11 | . 11 . . Parts Scanalyzed . | . . . . Part Schematics Acquired . | . . . . Parts Damaged . | . . . . Bothacking | -11 -10 -10 -10 ------------ Run | Yrd Mat Min Sub Used RIF Installer . | . . . . Robots Hacked . | . . . . Non-combat . | . . . . Combat . | . . . . Robot Hacks Applied . | . . . . Relay Couplers Released . | . . . . Fabnet Peak Effective % . | . . . . Robots Rewired . | . . . . Allies Hacked . | . . . . Hacks Repelled . | . . . . Allies | -11 -10 -10 -10 -------- Run | Yrd Mat Min Sub Total Allies 5 | . . 5 . Largest Group 3 | . . 3 2 Highest-Rated Group 49 | . . 49 49 Highest-Rated Ally 31 | . . 31 31 Total Orders . | . . . . Ally Attacks 43 | . . 6 37 Total Damage 785 | . . 91 694 Kills 8 | . . 2 6 Allies Corrupted 1 | . . . 1 Allies Melted 1 | . . . 1 Intel | -11 -10 -10 -10 ------- Run | Yrd Mat Min Sub Active Infowar (turns) 7699 | . 1556 736 5407 Sensors 2292 | . 1556 736 . Structural 5407 | . . . 5407 Robot Analysis Total . | . . . . Derelict Logs Recovered 2 | . . 1 1 Drone Launches . | . . . . Drone Recoveries . | . . . . Exploration | -11 -10 -10 -10 ------------- Run | Yrd Mat Min Sub Turns Passed 9049 | 91 1665 1535 5758 Spaces Moved 3141 | 49 895 711 1486 Core 16 | 16 . . . Treads 3125 | 33 895 711 1486 Legs . | . . . . Wheels . | . . . . Hover . | . . . . Flight . | . . . . Fastest Speed 50 | 50 160 160 160 Average Speed 169 | 124 160 160 181 Slowest Speed 240 | 160 160 160 240 Overloaded Moves . | . . . . Propulsion Burnouts . | . . . . Robots Hopped . | . . . . Potential Cave-ins . | . . . . Cave-ins Triggered . | . . . . Exploration Rate (%) 70 | 3 99 92 88 Regions Visited 3 Branch Regions 2 Pre-discovered Areas . | . . . . Known Exits Taken 3 | 1 1 1 . Unknown Exits Taken . | . . . . Scrap Searched 10 | . . . 10 Spaces Dug . | . . . . Terrain Destroyed 6 | . . . 6 Melee . | . . . . Projectile 1 | . . . 1 AOE 5 | . . . 5 Terrain Rammed . | . . . . Walls Destroyed . | . . . . Machines Disabled . | . . . . Actions | -11 -10 -10 -10 --------- Run | Yrd Mat Min Sub Total 6505 | 67 1035 1027 4376 Wait 3107 | . 80 246 2781 Move 3138 | 48 894 710 1486 Hop . | . . . . Pick Up 32 | 7 11 7 7 Fast Attach 3 | 1 . 1 1 Attach 13 | 5 2 3 3 Detach 2 | . 1 1 . Swap 8 | . . 2 6 Drop 6 | . . 2 4 Fire 194 | 6 47 53 88 Melee . | . . . . Ram . | . . . . Kick . | . . . . Crush 2 | . . 2 . Escape Stasis . | . . . . Rewire . | . . . . Trap . | . . . . Miscellaneous . | . . . . Route ------- -11/Scrapyard -10/Materials (discovered 4 exits: *Mat x3 / *Min) -10/Mines (discovered 3 exits: *Mat x2 / *Sub) -10/Subcaves (discovered 3 exits: *Mat x2 / *Rec) History --------- Turn | Location | Event 10 | -11/Scrapyard | Identified exit to Materials 10 | -11/Scrapyard | Discovered exit to Materials (range 15) 92 | -11/Scrapyard | Entered Materials 92 | -10/Materials | Evolved 1 slot: Utility x1 317 | -10/Materials | Build established: Hacker-Mutant 522 | -10/Materials | Identified exit to Materials 522 | -10/Materials | Discovered exit to Materials (range 16) 818 | -10/Materials | Identified exit to Mines 818 | -10/Materials | Discovered exit to Mines (range 8) 966 | -10/Materials | Discovered exit to Materials (range 13) 1413 | -10/Materials | Discovered exit to Materials (range 4) 1757 | -10/Materials | Entered Mines 1973 | -10/Mines | Found a damaged Exp. Sensor Array with a note attached 1976 | -10/Mines | Found Prototype Device 1993 | -10/Mines | Learned Materials emergency access door positions 2094 | -10/Mines | Discovered exit to Materials (range 13) 2113 | -10/Mines | Assisted by bots powering up and referring to "LRC-V3" 2145 | -10/Mines | Assembled infested the area 2183 | -10/Mines | Lost 3 allies 2664 | -10/Mines | Discovered exit to Materials (range 8) 3044 | -10/Mines | Identified exit to Subcaves 3044 | -10/Mines | Discovered exit to Subcaves (range 8) 3292 | -10/Mines | Entered Subcaves 3292 | -10/Subcaves | Accompanied by 2 allies 3297 | -10/Subcaves | Led the pair of lost Derelicts to an unsafe place 3326 | -10/Subcaves | Core integrity fell below 50% 3665 | -10/Subcaves | Identified exit to Materials 3713 | -10/Subcaves | Visited 4L-MR0's lab 3902 | -10/Subcaves | Curiously followed by a Cobbler waking with a query about "LVR3C" 3959 | -10/Subcaves | Build established: Scavenger-Mutant 4258 | -10/Subcaves | Ambushed by angry Subdweller bent on revenge 4555 | -10/Subcaves | Visited Clippyterm 4560 | -10/Subcaves | Learned Research security intel 4560 | -10/Subcaves | Learned Factory stockpile data 4712 | -10/Subcaves | A swath of the cavern ceiling suddenly collapsed 7392 | -10/Subcaves | A swath of the cavern ceiling suddenly collapsed 7518 | -10/Subcaves | Shifting Twisted Machinery released Sub. Power Source 7518 | -10/Subcaves | Shifting Twisted Machinery released Flamer 7939 | -10/Subcaves | Disturbed a concealed Subdweller 8246 | -10/Subcaves | Build established: Hacker-Mutant 8317 | -10/Subcaves | Shifting Twisted Machinery released Sub. Monowheel 8321 | -10/Subcaves | Shifting Twisted Machinery released Piercing Trap 8362 | -10/Subcaves | Identified exit to Recycling 8362 | -10/Subcaves | Discovered exit to Recycling (range 11) 8390 | -10/Subcaves | Discovered exit to Materials (range 9) 9043 | -10/Subcaves | Disturbed a concealed Subdweller 9045 | -10/Subcaves | Core integrity fell below 20% 9050 | -10/Subcaves | Destroyed by FA-NAX(R) with Subdweller Laser Last Messages --------------- 09036_ Acquired 54 matter. 09037_ Searching scrap... 09037_ Found Flamer. 09037_ Found Scrap Shield. 09037_ Found 36 Matter. 09038_ Acquired 11 matter. 09040_ Searching scrap... 09040_ Found Mak. Hammer. 09040_ Found Battle Rifle. 09040_ Found 46 Matter. 09042_ RX-B3I(O) collects matter. 09042_ Searching scrap... 09042_ Found Sub. Power Source. 09042_ Found Mak. Light Armor Plating. 09042_ Found 58 Matter. 09043_ FA-NAX(R) angrily emerges from the Twisted Machinery. 09044_ FA-NAX(R) Sub. Monowheel blasted off. 09045_ Acquired 5 matter. 09045_ RX-B3I(O) collects matter. Map ----- +----------------------------------------------------+ | #""####""" ## ###???## ! ###### ##????? | | "#""#""## #### ##??#### #############????? | | ##""#"""# #### ######### ####????#####????? | | "#""#""# #### ########" ##???######??????? | | ##"#""" ######### # ############?????? | | #"#""############ ####### ####????? | | ""# ############ ## ## ## ### ###????? | | " ######## ### # # ## ## ##????? | | "" ### ## ##????? | | # """ ### ## ##????? | | ## # "## ##????? | | ## ######### ##### ##????? | | # ########## ######## ###????? | | ## ###????## ### # ## ### ####????? | | ## ####???### #### ## ###### ######?????? | | # ####??### ### ###### #####??????? | | ####?### ### ##?### ###?????????? | | ###?## # ###?#######?????????? | | ##### ###?######??????????? | | & ##### ##?????????????????? | | ### ##### # #######????????????? | | ##### ######### =[# #######???????????? | | ####### ####### ###/& ###??????????? | | ##??### ##?## ##|*## ##??????????? | | ###?????? ?## ##